bitfinex-derivatives/quotes_SOLF0:USTF0_20251025
["timestamp","ask_amount","ask_price","bid_price","bid_amount"]
[1761417293454,2.87,193.92,193.85,4.74358262]
[1761417293656,2.87,193.92,193.85,7.39358262]
[1761417294343,2.87,193.92,193.85,4.74358262]
[1761417294643,2.87,193.92,193.87,2.65]
[1761417297049,6.30598713,193.96,193.87,2.65]
[1761417297256,2.87,193.95,193.87,2.65]
[1761417299658,2.87,193.95,193.88,7.39358262]
[1761417303060,2.64,193.93,193.86,4.74358262]
[1761417306256,2.64,193.93,193.85,4.74358262]
[1761417306466,2.64,193.93,193.86,2.69]
[1761417312759,1.4896395,193.92,193.86,2.69]
[1761417313264,2.79,193.91,193.86,2.69]
[1761417315764,68.35634763,193.95,193.86,2.69]
[1761417315765,4.81634763,193.95,193.86,2.69]
[1761417315962,2.79,193.94,193.86,2.69]
[1761417316667,2.79,193.97,193.9,2.69]
[1761417318460,4.2796395,194.0,193.91,2.69]
[1761417318657,2.79,194.0,193.92,2.69]
[1761417333070,4.2796395,194.0,193.92,2.69]
[1761417334374,2.79,193.99,193.92,2.69]
[1761417340896,2.81,193.97,193.92,2.69]
[1761417346693,2.81,194.05,193.92,2.69]
[1761417346894,12.84207394,194.22,193.92,2.69]
[1761417346895,1.4896395,194.01,193.92,2.69]
[1761417349597,4.2996395,194.01,193.92,2.69]
[1761417352901,2.81,194.01,193.92,2.69]
[1761417369212,2.81,194.01,193.94,2.65]
[1761417371304,2.81,194.01,193.91,2.65]
[1761417371510,2.68,194.0,193.91,2.65]
[1761417376210,2.68,194.0,193.93,4.74257666]
[1761417376513,2.68,194.0,193.94,2.65]
[1761417378615,2.32563858,194.07,193.94,2.65]
[1761417378812,2.68,194.06,193.95,2.65]
[1761417379013,2.68,194.06,193.96,4.74257666]
[1761417379216,2.68,194.06,193.98,2.65]
[1761417383108,2.68,194.12,193.98,2.65]
[1761417388925,2.68,194.12,194.01,2.65]
[1761417389218,2.68,194.16,194.06,2.65]
[1761417391025,2.32563858,194.15,194.06,2.65]
[1761417391231,2.68,194.14,194.06,2.65]
[1761417391526,2.68,194.13,194.06,2.65]
[1761417394328,2.68,194.13,194.01,2.65]
[1761417396220,5.00563858,194.13,194.01,2.65]
[1761417396424,2.68,194.12,194.01,2.65]
[1761417396623,2.68,194.12,193.97,2.65]
[1761417399029,2.68,194.12,194.0,4.93563858]
[1761417399231,2.68,194.12,194.0,2.32563858]
[1761417399436,2.68,194.12,194.01,2.61]
[1761417400622,2.68,194.12,194.02,2.61]
[1761417402630,2.7,194.22,194.09,2.32563858]
[1761417402836,2.7,194.22,194.1,2.61]
[1761417405739,2.7,194.21,194.1,2.61]
[1761417412742,1.48579873,194.2,194.1,2.61]
[1761417412943,2.7,194.19,194.1,2.61]
[1761417424645,4.18579873,194.19,194.1,2.61]
[1761417425951,2.6,194.18,194.1,2.61]
[1761417430256,1.48579873,194.14,194.07,2.69]
[1761417430454,2.6,194.13,194.07,2.69]
[1761417430655,2.6,194.17,194.07,2.69]
[1761417432556,2.6,194.17,194.08,1.48579873]
[1761417432754,2.6,194.17,194.09,2.69]
[1761417433254,2.6,194.13,194.06,4.74257666]
[1761417433459,2.6,194.1,194.02,2.69]
[1761417436257,14.16,194.17,194.05,2.69]
[1761417436258,2.6,194.17,194.05,2.69]
[1761417436559,2.6,194.16,194.05,2.69]
[1761417441360,2.6,194.16,194.06,2.69]
[1761417443963,4.81099526,194.23,194.08,2.69]
[1761417443964,2.6,194.19,194.08,2.69]
[1761417444163,2.6,194.19,194.11,2.69]
[1761417445461,2.6,194.19,194.12,2.69]
[1761417446462,2.6,194.19,194.09,2.69]
[1761417449565,1.48579873,194.18,194.09,2.69]
[1761417449763,2.6,194.17,194.09,2.69]
[1761417450660,2.6,194.21,194.09,7.41408184]
[1761417450867,2.6,194.24,194.13,2.69]
[1761417451466,2.6,194.24,194.14,2.69]
[1761417452362,2.6,194.24,194.17,2.69]
[1761417452959,2.6,194.24,194.14,2.69]
[1761417453263,2.6,194.22,194.14,2.69]
[1761417454464,2.6,194.19,194.11,2.69]
[1761417454671,2.6,194.19,194.11,4.17579873]
[1761417460571,2.6,194.19,194.08,8.88988057]
[1761417460872,2.6,194.19,194.08,4.16579873]
[1761417461073,2.6,194.19,194.08,2.68]
[1761417461375,2.6,194.19,194.06,8.88988057]
[1761417461566,2.69,194.17,194.06,8.88988057]
[1761417462260,2.69,194.17,194.06,6.20988057]
[1761417462467,2.69,194.15,194.07,4.16579873]
[1761417463673,2.69,194.15,194.07,8.88988057]
[1761417464978,2.69,194.15,194.07,2.68]
[1761417467076,2.69,194.14,194.07,2.68]
[1761417470175,2.69,194.17,194.08,2.68]
[1761417470380,63.26,194.16,194.08,2.68]
[1761417470580,65.95,194.16,194.08,2.68]
[1761417472382,2.69,194.16,194.08,2.68]
[1761417472585,65.95,194.16,194.08,2.68]
[1761417472979,2.69,194.16,194.08,2.68]
[1761417473184,65.95,194.16,194.08,2.68]
[1761417474084,2.69,194.16,194.08,2.68]
[1761417474286,65.95,194.16,194.08,2.68]
[1761417474981,2.69,194.16,194.08,2.68]
[1761417475181,2.69,194.16,194.1,2.68]
[1761417481083,65.95,194.16,194.1,2.68]
[1761417484485,2.69,194.16,194.1,2.68]
[1761417484690,65.95,194.16,194.1,2.68]
[1761417485090,2.69,194.16,194.1,2.68]
[1761417487294,65.95,194.16,194.1,2.68]
[1761417487491,65.95,194.16,194.07,4.72408184]
[1761417487492,2.74,194.15,194.07,4.72408184]
[1761417489000,2.74,194.15,194.06,2.59]
[1761417492598,2.74,194.15,194.01,2.69]
[1761417498104,2.32198855,194.12,194.01,2.69]
[1761417498311,2.76,194.11,194.01,2.69]
[1761417503809,2.76,194.09,194.01,2.69]
[1761417504014,2.76,194.08,194.01,2.69]
[1761417504612,2.76,194.07,194.01,2.69]
[1761417510921,2.76,194.11,194.01,2.69]
[1761417511220,2.76,194.09,194.01,2.69]
[1761417512925,2.76,194.08,194.01,2.69]
[1761417526136,2.81,194.11,194.01,2.69]
[1761417526435,66.05,194.1,194.01,2.69]
[1761417526636,2.81,194.09,194.01,2.69]
[1761417533437,2.81,194.09,193.95,2.69]
[1761417534439,2.32198855,194.08,193.95,2.69]
[1761417534633,2.81,194.07,193.95,2.69]
[1761417534837,2.81,194.03,193.95,2.69]
[1761417541239,6.51841762,194.03,193.95,2.69]
[1761417541439,3.70841762,194.02,193.95,2.69]
[1761417541741,2.81,194.03,193.95,2.69]
[1761417542247,6.51841762,194.03,193.95,2.69]
[1761417542544,3.70841762,194.02,193.95,2.69]
[1761417542746,2.81,194.03,193.95,2.69]
[1761417545344,6.51802254,194.03,193.95,2.69]
[1761417545538,2.81,194.03,193.95,2.69]
[1761417546139,6.51757395,194.03,193.95,2.69]
[1761417546339,2.81,194.03,193.95,2.69]
[1761417547043,6.50319473,194.03,193.95,2.69]
[1761417547242,2.81,194.03,193.95,2.69]
[1761417551051,2.81,194.03,193.86,40.50283871]
[1761417551052,2.82,194.06,193.98,2.62]
[1761417559054,2.82,194.06,193.98,7.259]
[1761417559254,2.82,194.09,194.01,2.62]
[1761417560854,6.51182057,194.09,194.01,2.62]
[1761417561048,2.82,194.09,194.01,2.62]
[1761417561645,6.58608769,194.09,194.01,2.62]
[1761417561849,2.82,194.09,194.01,2.62]
[1761417562655,6.58538062,194.09,194.01,2.62]
[1761417562856,2.82,194.09,194.01,2.62]
[1761417564057,6.58467516,194.09,194.01,2.62]
[1761417564257,2.82,194.09,194.01,2.62]
[1761417566065,2.82,194.11,194.04,2.62]
[1761417571167,2.82,194.14,194.05,2.62]
[1761417571366,2.82,194.13,194.05,2.62]
[1761417581479,3.75449827,194.17,194.05,4.6373]
[1761417581780,2.65,194.16,194.08,2.6]
[1761417582780,2.65,194.15,194.08,2.6]
[1761417591490,2.65,194.14,194.08,2.6]
[1761417595790,2.65,194.18,194.09,2.6]
[1761417596688,2.65,194.17,194.09,2.6]
[1761417596995,2.65,194.16,194.09,2.6]
[1761417606097,2.65,194.16,194.1,2.69]
[1761417606991,2.65,194.16,194.1,4.6361]
[1761417607196,2.65,194.16,194.11,2.69]
[1761417609501,3.77235061,194.18,194.11,2.69]
[1761417609801,2.73,194.22,194.16,2.69]
[1761417611292,6.50212723,194.22,194.16,2.69]
[1761417611499,2.73,194.27,194.16,2.69]
[1761417611801,2.73,194.25,194.16,2.69]
[1761417611993,2.73,194.23,194.16,2.69]
[1761417612194,6.49966559,194.23,194.16,2.69]
[1761417612390,6.49966559,194.22,194.16,2.69]
[1761417612594,2.73,194.22,194.16,2.69]
[1761417613300,3.76848975,194.24,194.16,2.69]
[1761417613505,6.42525669,194.34,194.16,2.69]
[1761417613506,2.73,194.23,194.16,2.69]
[1761417618505,2.73,194.23,194.18,2.69]
[1761417620802,2.73,194.22,194.18,2.69]
[1761417624310,3.90848234,194.24,194.18,2.69]
[1761417624509,6.63848234,194.24,194.18,2.69]
[1761417624713,2.73,194.22,194.18,2.69]
[1761417626511,2.73,194.21,194.18,2.69]
[1761417628216,2.73,194.21,194.15,2.69]
[1761417629111,2.73,194.2,194.15,2.69]
[1761417629412,2.73,194.19,194.15,2.69]
[1761417635213,2.73,194.22,194.17,2.69]
[1761417636011,2.73,194.22,194.16,4.6348]
[1761417639316,2.8,194.21,194.15,2.69]
[1761417641214,2.8,194.19,194.11,2.64]
[1761417641424,2.8,194.17,194.11,2.64]
[1761417642709,2.8,194.17,194.12,2.64]
[1761417647417,2.8,194.15,194.09,4.6364]
[1761417647722,2.8,194.14,194.09,4.6364]
[1761417647924,2.8,194.14,194.09,7.2764]
[1761417649429,2.8,194.14,194.09,2.64]
[1761417652626,2.8,194.14,194.07,7.2769]
[1761417652827,2.8,194.14,194.07,2.64]
[1761417656832,2.8,194.14,194.07,4.12585268]
[1761417658832,2.8,194.13,194.07,4.12585268]
[1761417660625,2.8,194.13,194.04,4.17585268]
[1761417663824,2.73,194.12,194.04,4.17585268]
[1761417664033,2.73,194.11,194.04,4.17585268]
[1761417664639,2.73,194.11,194.04,1.48585268]
[1761417665830,2.73,194.11,194.01,62.96]
[1761417666533,2.73,194.1,194.01,62.96]
[1761417666736,2.73,194.09,194.01,62.96]
[1761417667542,2.73,194.09,193.99,4.17585268]
[1761417668136,2.73,194.09,193.99,2.69]
[1761417676544,2.73,194.09,194.0,2.69]
[1761417677744,2.73,194.09,194.03,2.69]
[1761417678046,2.73,194.09,194.04,2.69]
[1761417696656,2.87,194.07,193.99,2.69]
[1761417696858,2.87,194.05,193.99,2.69]
[1761417697165,2.87,194.04,193.99,2.69]
[1761417699063,2.87,194.04,193.96,2.69]
[1761417700555,1.48585268,194.02,193.96,2.69]
[1761417700759,2.66,194.01,193.96,2.69]
[1761417711166,3.90727867,194.05,193.96,2.69]
[1761417711471,2.66,194.04,193.96,2.69]
[1761417713164,20.38525669,194.12,193.96,2.69]
[1761417713165,2.66,194.07,193.96,2.69]
[1761417713972,2.66,194.07,194.0,2.69]
[1761417714176,6.56519984,194.07,194.0,2.69]
[1761417714368,2.66,194.07,194.0,2.69]
[1761417715573,6.56515169,194.07,194.0,2.69]
[1761417715775,2.66,194.07,194.0,2.69]
[1761417716967,2.66,194.06,194.0,2.69]
[1761417719575,2.66,194.06,193.97,7.3393]
[1761417719970,2.84,194.05,193.97,7.3393]
[1761417720875,2.84,194.05,193.97,2.7]
[1761417722574,2.84,194.05,193.93,63.91060862]
[1761417722778,2.84,194.03,193.93,2.7]
[1761417724080,2.84,194.03,193.94,2.7]
[1761417726876,2.84,194.02,193.94,2.7]
[1761417729093,2.77,194.01,193.94,2.7]
[1761417730005,2.77,193.99,193.91,2.7]
[1761417730302,2.77,193.97,193.91,2.7]
[1761417735508,2.77,193.97,193.89,4.6411]
[1761417735509,2.77,193.97,193.88,2.7]
[1761417748323,2.77,193.97,193.88,7.3413]
[1761417748524,2.77,193.97,193.89,2.7]
[1761417757424,2.77,193.97,193.87,2.7]
[1761417759230,4.00109482,193.97,193.87,2.7]
[1761417759428,2.74,193.96,193.87,2.7]
[1761417761229,2.74,193.95,193.87,2.7]
[1761417772338,4.01275155,193.94,193.87,2.7]
[1761417772635,2.74,193.95,193.87,2.7]
[1761417772833,6.75275155,193.94,193.87,2.7]
[1761417773038,2.74,193.94,193.87,2.7]
[1761417778142,6.75590032,193.93,193.87,2.7]
[1761417778330,2.74,193.93,193.87,2.7]
[1761417778734,4.22962462,193.93,193.87,2.7]
[1761417779837,1.48962462,193.93,193.87,2.7]
[1761417783436,4.82659501,193.97,193.88,2.7]
[1761417783637,4.20962462,194.0,193.88,2.7]
[1761417783936,4.01473983,193.99,193.88,2.7]
[1761417784137,4.20962462,194.0,193.88,2.7]
[1761417784338,4.01473932,193.99,193.92,2.7]
[1761417784534,4.20962462,194.0,193.92,2.7]
[1761417784741,4.01349838,193.99,193.92,2.7]
[1761417784941,4.20962462,194.0,193.92,2.7]
[1761417785144,4.01349738,193.99,193.92,2.7]
[1761417785345,4.20962462,194.0,193.92,2.7]
[1761417785537,4.01247541,193.99,193.92,2.7]
[1761417785740,4.20962462,194.0,193.92,2.7]
[1761417786047,4.01247541,193.99,193.92,2.7]
[1761417786247,4.20962462,194.0,193.92,2.7]
[1761417786447,4.01242469,193.99,193.92,2.7]
[1761417786639,4.20962462,194.0,193.92,2.7]
[1761417786842,4.01338041,193.99,193.92,2.7]
[1761417787047,4.20962462,194.0,193.92,2.7]
[1761417787244,4.01338091,193.99,193.92,2.7]
[1761417787445,4.20962462,194.0,193.92,2.7]
[1761417790950,2.72,194.0,193.92,2.7]
[1761417791846,2.69,193.99,193.92,2.7]
[1761417792748,2.69,193.96,193.92,2.7]
[1761417793541,2.69,193.93,193.88,2.69]
[1761417793743,2.69,193.93,193.85,2.69]
[1761417804550,2.69,193.93,193.86,2.69]
[1761417804757,2.69,193.91,193.83,2.69]
[1761417804955,2.69,193.91,193.84,0.89756651]
[1761417805158,2.69,193.91,193.84,3.58756651]
[1761417807156,2.69,193.88,193.84,3.58756651]
[1761417807361,2.69,193.88,193.85,2.69]
[1761417808556,2.69,193.88,193.84,3.58756651]
[1761417809762,2.69,193.88,193.85,2.69]
[1761417810564,4.17962462,193.93,193.85,2.69]
[1761417810759,2.69,193.92,193.85,2.69]
[1761417815974,2.69,193.92,193.85,4.6421]
[1761417816177,2.69,193.92,193.86,2.69]
[1761417840094,2.69,193.92,193.87,2.69]
[1761417846101,2.69,193.9,193.87,2.69]
[1761417846302,2.69,193.9,193.84,5.53996651]
[1761417846303,2.69,193.9,193.84,3.58756651]
[1761417848102,2.69,193.9,193.85,2.7]
[1761417853106,4.54918807,193.95,193.88,2.32677556]
[1761417853304,2.84,193.99,193.9,2.7]
[1761417853498,4.02264524,193.98,193.9,2.7]
[1761417853705,7.65729281,194.02,193.92,2.7]
[1761417854005,11.40870037,194.01,193.92,2.7]
[1761417854203,2.84,194.03,193.96,2.7]
[1761417854407,6.75044128,194.02,193.96,2.7]
[1761417854604,2.84,194.02,193.96,2.7]
[1761417864813,2.84,194.04,193.96,2.7]
[1761417865108,2.84,194.03,193.96,2.7]
[1761417866104,2.84,194.03,193.97,2.7]
[1761417869308,2.84,194.03,193.94,2.7]
[1761417877015,3.91968516,194.06,193.94,2.7]
[1761417877228,2.84,194.02,193.94,2.7]
[1761417889225,2.84,194.02,193.95,2.67]
[1761417893332,6.76341709,194.02,193.95,2.67]
[1761417893532,2.84,194.02,193.95,2.67]
[1761417895221,3.93132677,194.01,193.95,2.67]
[1761417895426,2.84,194.02,193.95,2.67]
[1761417895629,3.90844037,194.01,193.95,2.67]
[1761417895826,2.84,194.02,193.95,2.67]
[1761417896127,3.90844087,194.01,193.95,2.67]
[1761417896321,2.84,194.02,193.95,2.67]
[1761417896532,3.91129243,194.01,193.95,2.67]
[1761417896732,2.84,194.02,193.95,2.67]
[1761417896928,3.91129243,194.01,193.95,2.67]
[1761417897128,3.91636577,194.0,193.95,2.67]
[1761417897334,2.84,194.02,193.95,2.67]
[1761417897533,2.64,194.0,193.95,2.67]
[1761417898035,2.64,194.02,193.95,2.67]
[1761417898235,3.91636728,194.01,193.95,2.67]
[1761417898436,3.91636728,194.0,193.95,2.67]
[1761417898638,2.64,194.02,193.95,2.67]
[1761417898936,3.89463815,194.01,193.95,2.67]
[1761417899237,3.89463815,194.0,193.95,2.67]
[1761417899434,2.64,194.02,193.95,2.67]
[1761417899629,3.89482552,194.01,193.95,2.67]
[1761417899824,3.89482552,194.0,193.95,2.67]
[1761417900030,2.64,194.02,193.95,2.67]
[1761417900226,3.89482552,194.01,193.95,2.67]
[1761417900438,3.89482552,194.0,193.95,2.67]
[1761417900641,2.64,194.02,193.95,2.67]
[1761417900936,2.84,194.0,193.95,2.67]
[1761417903444,2.84,194.0,193.95,4.6397]
[1761417903737,2.84,194.0,193.96,2.69]
[1761417904140,7.25603191,194.03,193.97,2.69]
[1761417904341,3.89502009,194.02,193.97,2.69]
[1761417904638,4.80459686,194.05,193.94,1.4878026]
[1761417904639,2.84,194.05,193.98,4.6391]
[1761417904840,3.84083675,194.04,193.99,2.69]
[1761417905039,3.84083675,194.03,193.99,2.69]
[1761417905239,2.84,194.05,193.99,2.69]
[1761417905430,6.68001324,194.04,193.99,2.69]
[1761417905633,2.84,194.04,193.99,2.69]
[1761417906632,2.84,194.04,193.99,7.3287]
[1761417906834,3.72475168,194.04,194.0,2.69]
[1761417907034,2.84,194.03,194.0,2.69]
[1761417909945,2.73,194.05,194.0,2.69]
[1761417910147,6.45521098,194.05,194.01,2.6]
[1761417910443,2.73,194.05,194.01,2.6]
[1761417910938,6.45446569,194.05,194.01,2.6]
[1761417911140,2.73,194.05,194.01,2.6]
[1761417911743,2.73,194.05,193.97,1.4878026]
[1761417911744,4.80459686,194.13,194.02,2.6]
[1761417911938,1.4878026,194.09,194.02,2.6]
[1761417912145,2.73,194.07,194.02,2.6]
[1761417913635,2.73,194.1,194.04,2.6]
[1761417914140,2.73,194.1,194.04,7.2376]
[1761417914343,2.73,194.1,194.05,2.6]
[1761417916949,3.72027784,194.11,194.06,4.6372]
[1761417917251,15.46,194.23,194.0,39.26]
[1761417917252,2.73,194.18,194.07,2.6]
[1761417917452,2.73,194.18,194.08,2.6]
[1761417917648,2.73,194.18,194.09,4.6363]
[1761417917950,2.73,194.18,194.1,2.6]
[1761417918341,2.73,194.18,194.11,2.6]
[1761417918956,2.73,194.22,194.11,2.6]
[1761417919752,2.73,194.22,194.15,2.6]
[1761417927257,2.73,194.21,194.12,7.2358]
[1761417927455,2.73,194.21,194.14,2.6]
[1761417932462,2.73,194.25,194.17,2.6]
[1761417939065,2.73,194.25,194.15,4.6348]
[1761417939256,2.61,194.24,194.15,4.6348]
[1761417939457,2.61,194.24,194.15,7.2348]
[1761417945364,2.61,194.24,194.15,4.6348]
[1761417945572,2.61,194.24,194.16,2.6]
[1761417952070,2.61,194.24,194.16,4.0878026]
[1761417953265,2.61,194.24,194.16,2.6]
[1761417953462,2.61,194.24,194.16,4.0878026]
[1761417955376,2.61,194.24,194.16,1.4878026]
[1761417955577,2.61,194.24,194.13,7.2355]
[1761417955767,2.61,194.24,194.13,8.7233026]
[1761417958069,2.61,194.21,194.1,2.6]
[1761417958577,2.61,194.21,194.1,7.2361]
[1761417959279,2.61,194.21,194.1,4.6361]
[1761417959480,2.61,194.21,194.1,7.3261]
[1761417959981,2.61,194.21,194.11,2.69]
[1761417960478,2.61,194.21,194.12,2.69]
[1761417961377,2.67,194.18,194.09,2.69]
[1761417961582,2.67,194.18,194.08,4.6367]
[1761417961883,2.67,194.15,194.05,4.1778026]
[1761417962076,2.67,194.15,194.05,10.39958939]
[1761417962281,2.67,194.15,194.05,4.1778026]
[1761417962675,2.67,194.15,194.05,2.69]
[1761417966092,2.67,194.15,194.04,50.44]
[1761417967080,2.67,194.15,194.02,2.69]
[1761417967678,2.67,194.14,194.02,2.69]
[1761417971188,2.67,194.14,194.02,7.3282]
[1761417971587,2.67,194.14,194.03,2.66]
[1761417980187,2.67,194.14,194.0,2.66]
[1761417980497,2.88,194.13,194.0,2.66]
[1761417986009,2.88,194.13,194.01,2.66]
[1761417993100,2.88,194.13,193.98,2.66]
[1761417993504,2.88,194.12,193.98,2.66]
[1761417993709,2.88,194.11,193.98,2.66]
[1761417996208,2.88,194.11,193.94,2.66]
[1761417996414,2.88,194.1,193.94,2.66]
[1761417996606,2.88,194.09,193.94,2.66]
[1761417996806,2.88,194.08,193.94,2.66]
[1761417997006,2.88,194.07,193.94,2.66]
[1761418000109,2.68,194.05,193.89,2.69]
[1761418000315,2.68,194.04,193.89,2.69]
[1761418001710,2.68,194.03,193.89,2.69]
[1761418002510,2.68,194.02,193.89,2.69]
[1761418006017,2.68,194.01,193.89,2.69]
[1761418006211,3.68711874,194.03,193.89,2.69]
[1761418006417,2.68,194.02,193.89,2.69]
[1761418006864,2.68,194.03,193.89,2.69]
[1761418007090,2.68,194.02,193.89,2.69]
[1761418011218,2.68,194.01,193.89,2.69]
[1761418014024,2.68,194.01,193.89,7.3313]
[1761418014232,2.68,194.01,193.9,2.69]
[1761418017228,2.68,194.01,193.91,2.69]
[1761418017823,2.68,194.01,193.92,2.69]
[1761418018422,17.78246921,194.1,193.92,2.69]
[1761418018423,2.68,194.08,193.92,2.69]
[1761418018728,2.68,194.07,193.92,2.69]
[1761418020127,2.68,194.07,193.93,2.69]
[1761418020524,2.83,194.06,193.93,2.69]
[1761418020722,2.83,194.05,193.93,2.69]
[1761418023132,2.83,194.04,193.93,2.69]
[1761418027530,2.83,194.01,193.93,2.69]
[1761418027836,2.83,194.01,193.89,2.69]
[1761418031236,2.8,193.98,193.89,2.69]
[1761418032428,2.8,193.98,193.87,2.68]
[1761418032429,1.48801379,193.96,193.87,2.68]
[1761418032636,2.8,193.95,193.87,2.68]
[1761418033942,1.48801379,193.92,193.87,2.68]
[1761418035245,4.28801379,193.92,193.87,2.68]
[1761418036339,2.8,193.91,193.87,2.68]
[1761418037942,1.48801379,193.89,193.84,3.57758966]
[1761418038148,2.8,193.88,193.85,2.68]
[1761418038837,1.48801379,193.86,193.85,2.68]
[1761418040344,1.48801379,193.86,193.79,14.13859477]
[1761418040542,1.48801379,193.86,193.81,2.68]
[1761418041343,4.28801379,193.86,193.81,2.68]
[1761418041545,1.48801379,193.86,193.81,2.68]
[1761418041852,1.48801379,193.87,193.81,2.68]
[1761418042643,2.8,193.93,193.81,2.68]
[1761418042850,1.48801379,193.89,193.81,2.68]
[1761418045152,1.48801379,193.89,193.82,2.68]
[1761418061363,2.8,193.91,193.82,2.68]
[1761418061654,4.08801379,193.9,193.84,2.66]
[1761418067268,4.08801379,193.94,193.85,2.66]
[1761418068964,4.08801379,193.94,193.87,4.6416]
[1761418069166,4.08801379,193.94,193.88,2.66]
[1761418071467,2.6,193.93,193.88,2.66]
[1761418077469,1.48801379,193.91,193.88,2.66]
[1761418081974,4.14801379,193.91,193.88,2.66]
[1761418085077,2.66,193.9,193.85,2.7]
[1761418085381,4.14801379,193.88,193.85,2.7]
[1761418086176,2.66,193.87,193.85,2.7]
[1761418086377,2.66,193.87,193.81,2.7]
[1761418086578,1.48801379,193.88,193.83,2.7]
[1761418086783,2.66,193.9,193.83,2.7]
[1761418087179,2.66,193.93,193.83,2.7]
[1761418087679,2.66,193.93,193.86,2.7]
[1761418095597,2.86,193.96,193.87,2.69]
[1761418097006,2.86,193.96,193.89,2.69]
[1761418097703,2.86,193.96,193.9,2.69]
[1761418098503,2.86,193.96,193.91,2.69]
[1761418100209,4.44248194,194.01,193.92,2.69]
[1761418100210,2.86,193.99,193.92,2.69]
[1761418123028,2.86,193.99,193.88,2.69]
[1761418126325,2.86,193.99,193.89,2.69]
[1761418127934,2.86,193.99,193.9,4.6409]
[1761418128135,2.86,193.99,193.91,2.69]
[1761418139946,2.86,193.99,193.88,7.3314]
[1761418140246,2.81,193.97,193.88,7.3314]
[1761418140638,2.81,193.97,193.88,2.69]
[1761418148846,4.44341123,194.02,193.88,2.69]
[1761418148847,4.36898029,193.96,193.88,2.69]
[1761418150350,2.88,193.95,193.88,2.69]
[1761418162348,2.88,193.98,193.88,2.69]
[1761418163954,2.88,193.98,193.89,4.6411]
[1761418164158,2.88,193.98,193.9,2.68]
[1761418173263,2.88,193.97,193.9,2.68]
[1761418173953,1.48898029,193.95,193.9,2.68]
[1761418174167,2.88,193.94,193.9,2.68]
[1761418174659,2.88,193.94,193.87,7.3217]
[1761418177564,2.88,193.94,193.87,4.6417]
[1761418177766,2.88,193.91,193.86,28.96]
[1761418177971,2.88,193.91,193.86,31.64]
[1761418178273,2.88,193.91,193.87,2.67]
[1761418186780,2.88,193.91,193.86,28.96]